fUST/lending_fUST_20250108
["ID","MTS","AMOUNT","RATE_DAILY","PERIOD"]
[348030564,1736271032826,-500.0,0.00019178,2]
[348030566,1736271032836,-500.0,0.00019178,2]
[348030568,1736271032847,-500.0,0.00019178,2]
[348030570,1736271032858,-500.0,0.00019178,2]
[348030572,1736271032868,-500.0,0.00019178,2]
[348030575,1736271032878,-500.0,0.00019178,2]
[348030577,1736271032889,-500.0,0.00019178,2]
[348030579,1736271032900,-500.0,0.00019178,2]
[348030581,1736271032910,-500.0,0.00019178,2]
[348030583,1736271032921,-500.0,0.00019178,2]
[348030585,1736271032931,-500.0,0.00019178,2]
[348030587,1736271032942,-500.0,0.00019178,2]
[348030589,1736271032952,-500.0,0.00019178,2]
[348030591,1736271032962,-500.0,0.00019178,2]
[348030594,1736271032973,-500.0,0.00019178,2]
[348030596,1736271032984,-500.0,0.00019178,2]
[348030598,1736271032995,-500.0,0.00019178,2]
[348030600,1736271033006,-500.0,0.00019178,2]
[348030602,1736271033020,-509.0580298,0.00019178,2]
[348030604,1736271033031,-500.0,0.00019178,2]
[348030606,1736271033042,-500.0,0.00019178,2]
[348030608,1736271033053,-500.0,0.00019178,2]
[348030610,1736271033065,-500.0,0.00019178,2]
[348030613,1736271033077,-500.0,0.00019178,2]
[348030615,1736271033087,-161.60800485,0.00019178,2]
[348030617,1736271033098,-178.72001784,0.00019178,2]
[348030619,1736271033109,-500.0,0.00019178,2]
[348030621,1736271033119,-500.0,0.00019178,2]
[348030623,1736271033130,-500.0,0.00019178,2]
[348030625,1736271033141,-500.0,0.00019178,2]
[348030627,1736271033151,-500.0,0.00019178,2]
[348030629,1736271033162,-510.21337728,0.00019178,2]
[348030631,1736271033174,-500.0,0.00019178,2]
[348030633,1736271033185,-503.15664519,0.00019178,2]
[348030635,1736271033196,-501.76117965,0.00019178,2]
[348030637,1736271033208,-500.0,0.00019178,2]
[348030640,1736271033220,-500.0,0.00019178,2]
[348030642,1736271033231,-505.96997418,0.00019178,2]
[348030660,1736271033422,-500.0,0.00019178,2]
[348030662,1736271033433,-500.0,0.00019178,2]
[348030665,1736271033442,-500.0,0.00019178,2]
[348030667,1736271033451,-500.0,0.00019178,2]
[348030669,1736271033461,-500.0,0.00019178,2]
[348030671,1736271033469,-500.0,0.00019178,2]
[348030673,1736271033478,-500.0,0.00019178,2]
[348030675,1736271033487,-500.0,0.00019178,2]
[348030677,1736271033496,-500.0,0.00019178,2]
[348030679,1736271033505,-500.0,0.00019178,2]
[348030680,1736271033515,-500.0,0.00019178,2]
[348030683,1736271033525,-500.0,0.00019178,2]
[348030684,1736271033534,-500.0,0.00019178,2]
[348030687,1736271033543,-500.0,0.00019178,2]
[348030689,1736271033553,-500.0,0.00019178,2]
[348030691,1736271033567,-500.0,0.00019178,2]
[348030692,1736271033574,-500.0,0.00019178,2]
[348030694,1736271033582,-500.0,0.00019178,2]
[348030696,1736271033592,-500.0,0.00019178,2]
[348030698,1736271033603,-500.0,0.00019178,2]
[348030700,1736271033613,-500.0,0.00019178,2]
[348030702,1736271033623,-500.0,0.00019178,2]
[348030704,1736271033635,-500.0,0.00019178,2]
[348030706,1736271033647,-500.0,0.00019178,2]
[348030708,1736271033658,-500.0,0.00019178,2]
[348030710,1736271033668,-500.0,0.00019178,2]
[348030712,1736271033678,-500.0,0.00019178,2]
[348030714,1736271033688,-500.0,0.00019178,2]
[348030716,1736271033698,-500.0,0.00019178,2]
[348030718,1736271033708,-500.0,0.00019178,2]
[348030720,1736271033718,-500.0,0.00019178,2]
[348030722,1736271033728,-500.0,0.00019178,2]
[348030724,1736271033738,-500.0,0.00019178,2]
[348030726,1736271033748,-500.0,0.00019178,2]
[348030728,1736271033758,-500.0,0.00019178,2]
[348030730,1736271033768,-500.0,0.00019178,2]
[348030732,1736271033778,-500.0,0.00019178,2]
[348030734,1736271033787,-500.0,0.00019178,2]
[348030736,1736271033797,-500.0,0.00019178,2]
[348030738,1736271033807,-500.0,0.00019178,2]
[348030740,1736271033817,-714.43,0.00019178,2]
[348030743,1736271033829,-500.0,0.00019178,2]
[348030745,1736271033839,-500.0,0.00019178,2]
[348030747,1736271033849,-500.0,0.00019178,2]
[348030749,1736271033859,-500.0,0.00019178,2]
[348030750,1736271033870,-500.0,0.00019178,2]
[348030752,1736271033880,-500.0,0.00019178,2]
[348030754,1736271033890,-500.0,0.00019178,2]
[348030756,1736271033900,-500.0,0.00019178,2]
[348030758,1736271033911,-500.0,0.00019178,2]
[348030760,1736271033920,-500.0,0.00019178,2]
[348030762,1736271033933,-500.0,0.00019178,2]
[348030764,1736271033943,-500.0,0.00019178,2]
[348030766,1736271033953,-1049.06,0.00019178,2]
[348030768,1736271033964,-4190.32,0.00019178,2]
[348030770,1736271033975,-500.0,0.00019178,2]
[348030773,1736271033985,-500.0,0.00019178,2]
[348030775,1736271033995,-500.0,0.00019178,2]
[348030777,1736271034006,-500.0,0.00019178,2]
[348030779,1736271034020,-405.35044384,0.00019178,2]
[348030781,1736271034030,-500.0,0.00019178,2]
[348030783,1736271034040,-500.0,0.00019178,2]
[348030785,1736271034050,-500.0,0.00019178,2]
[348030787,1736271034061,-500.0,0.00019178,2]
[348030789,1736271034071,-500.0,0.00019178,2]
[348030791,1736271034082,-500.0,0.00019178,2]
[348030793,1736271034091,-500.0,0.00019178,2]
[348030795,1736271034101,-500.0,0.00019178,2]
[348030797,1736271034111,-500.0,0.00019178,2]
[348030799,1736271034122,-500.0,0.00019178,2]
[348030801,1736271034133,-500.0,0.00019178,2]
[348030803,1736271034143,-500.0,0.00019178,2]
[348030804,1736271034152,-500.0,0.00019178,2]
[348030806,1736271034163,-500.0,0.00019178,2]
[348030808,1736271034173,-500.0,0.00019178,2]
[348030810,1736271034182,-500.0,0.00019178,2]
[348030812,1736271034193,-500.0,0.00019178,2]
[348030814,1736271034203,-500.0,0.00019178,2]
[348030816,1736271034213,-500.0,0.00019178,2]
[348030818,1736271034223,-1151.2,0.00019178,2]
[348030820,1736271034233,-500.0,0.00019178,2]
[348030822,1736271034243,-500.0,0.00019178,2]
[348030824,1736271034253,-500.0,0.00019178,2]
[348030826,1736271034263,-500.0,0.00019178,2]
[348030828,1736271034273,-500.0,0.00019178,2]
[348030830,1736271034283,-527.63,0.00019178,2]
[348030832,1736271034293,-261.22282466,0.00019178,2]
[348030834,1736271034303,-153.91,0.00019178,2]
[348030836,1736271034314,-164.568038,0.00019178,2]
[348030838,1736271034325,-1092.33,0.000192,2]
[348030840,1736271034336,-500.0,0.00019452,3]
[348030842,1736271034346,-500.0,0.00019452,3]
[348030844,1736271034356,-500.0,0.00019452,3]
[348030846,1736271034366,-0.20898804,0.00019452,3]
[348030849,1736271034381,-499.79101196,0.00019452,3]
[348030851,1736271034391,-188.29898804,0.00019452,3]
[348030853,1736271034403,-311.70101196,0.00019452,3]
[348030855,1736271034413,-500.0,0.00019452,3]
[348030857,1736271034423,-500.0,0.00019452,3]
[348030859,1736271034432,-500.0,0.00019452,3]
[348030861,1736271034442,-500.0,0.00019452,3]
[348030863,1736271034451,-500.0,0.00019452,3]
[348030865,1736271034460,-500.0,0.00019452,3]
[348030867,1736271034469,-1079.34,0.00019452,3]
[348030869,1736271034478,-478.95898804,0.00019452,3]
[348031778,1736271043298,-503.47012588,0.00019178,2]
[348031781,1736271043307,-482.01733646,0.00019178,2]
[348035423,1736271399608,219.253033,0.00013973,2]
[348036088,1736272232741,-876.79142681,0.00018034,2]
[348036090,1736272232751,-665.73357319,0.00018216,2]
[348036092,1736272232763,-290.01988153,0.00018216,2]
[348036095,1736272232775,-358.99997,0.00018216,2]
[348036097,1736272232786,-2897.13585067,0.00018216,2]
[348036098,1736272232795,-472.99338025,0.000183,2]
[348036099,1736272232804,-300.0,0.00018399,2]
[348036100,1736272232813,-54464.47076908,0.00018399,2]
[348036101,1736272232825,-11259.52923092,0.00018399,2]
[348036102,1736272232835,-150.0,0.000184,2]
[348036103,1736272232844,-150.0,0.000184,2]
[348036104,1736272232854,-150.0,0.000184,2]
[348036105,1736272232863,-150.0,0.000184,2]
[348036107,1736272232873,-344.5229393,0.000184,2]
[348036109,1736272232883,-150.0,0.000189,2]
[348036111,1736272232892,-300.5122455,0.00018969,2]
[348036113,1736272232902,-156.845772,0.0001897,2]
[348036115,1736272232910,-500.0,0.0001907,2]
[348036117,1736272232920,-500.0,0.0001907,2]
[348036118,1736272232932,-500.0,0.0001907,2]
[348036120,1736272232939,-500.0,0.0001907,2]
[348036122,1736272232948,-500.0,0.0001907,2]
[348036124,1736272232959,-500.0,0.0001907,2]
[348036126,1736272232967,-446.92292562,0.0001907,2]
[348036128,1736272232975,-500.0,0.0001907,2]
[348036130,1736272232983,-500.0,0.0001907,2]
[348036152,1736272233112,-500.0,0.0001907,2]
[348036157,1736272233131,-500.0,0.0001907,2]
[348036159,1736272233141,-500.0,0.0001907,2]
[348036162,1736272233150,-636.80966689,0.0001907,2]
[348036165,1736272233159,-74.65721977,0.0001907,2]
[348036170,1736272233182,-425.34278023,0.0001907,2]
[348036173,1736272233192,-500.0,0.0001907,2]
[348036176,1736272233201,-500.0,0.0001907,2]
[348036179,1736272233211,-500.0,0.0001907,2]
[348036182,1736272233221,-500.0,0.0001907,2]
[348036185,1736272233231,-500.0,0.0001907,2]
[348036188,1736272233240,-500.0,0.0001907,2]
[348036191,1736272233251,-500.0,0.0001907,2]
[348036194,1736272233261,-500.0,0.0001907,2]
[348036197,1736272233271,-500.0,0.0001907,2]
[348036200,1736272233280,-500.0,0.0001907,2]
[348036203,1736272233291,-500.0,0.0001907,2]
[348036206,1736272233302,-500.0,0.0001907,2]
[348036209,1736272233313,-500.0,0.0001907,2]
[348036212,1736272233324,-500.0,0.0001907,2]
[348036215,1736272233335,-500.0,0.0001907,2]
[348036218,1736272233344,-500.0,0.0001907,2]
[348036221,1736272233354,-500.0,0.0001907,2]
[348036224,1736272233364,-500.0,0.0001907,2]
[348036227,1736272233375,-500.0,0.0001907,2]
[348036230,1736272233385,-500.0,0.0001907,2]
[348036233,1736272233398,-500.0,0.0001907,2]
[348036236,1736272233408,-500.0,0.0001907,2]
[348036239,1736272233418,-500.0,0.0001907,2]
[348036243,1736272233435,-500.0,0.0001907,2]
[348036246,1736272233445,-500.0,0.0001907,2]
[348036249,1736272233455,-225.0,0.0001907,2]
[348036252,1736272233465,-500.0,0.0001907,2]
[348036254,1736272233475,-500.0,0.0001907,2]
[348036258,1736272233486,-500.0,0.0001907,2]
[348036260,1736272233495,-500.0,0.0001907,2]
[348036264,1736272233507,-500.0,0.0001907,2]
[348036266,1736272233517,-500.0,0.0001907,2]
[348036268,1736272233528,-500.0,0.0001907,2]
[348036270,1736272233538,-500.0,0.0001907,2]
[348036272,1736272233549,-200.0,0.0001907,2]
[348036274,1736272233559,-500.0,0.0001907,2]
[348036276,1736272233569,-500.0,0.0001907,2]
[348036278,1736272233579,-488.24694559,0.0001907,2]
[348036279,1736272233589,-500.0,0.0001907,2]
[348036282,1736272233599,-500.0,0.0001907,2]
[348036284,1736272233609,-500.0,0.0001907,2]
[348036286,1736272233619,-251.94156128,0.0001907,2]
[348036288,1736272233628,-500.0,0.0001907,2]
[348036290,1736272233639,-500.0,0.0001907,2]
[348036292,1736272233648,-500.0,0.0001907,2]
[348036294,1736272233658,-500.0,0.0001907,2]
[348036295,1736272233668,-500.0,0.0001907,2]
[348036298,1736272233681,-270.0,0.0001907,2]
[348036300,1736272233692,-500.0,0.0001907,2]
[348036302,1736272233702,-264.63133217,0.0001907,2]
[348036304,1736272233715,-235.36866783,0.0001907,2]
[348036306,1736272233724,-313.17109517,0.0001907,2]
[348036308,1736272233736,-186.82890483,0.0001907,2]
[348036310,1736272233745,-500.0,0.0001907,2]
[348036312,1736272233755,-500.0,0.0001907,2]
[348036314,1736272233765,-500.0,0.0001907,2]
[348036316,1736272233775,-247.17109517,0.0001907,2]
[348036798,1736272238789,-500.0,0.00018399,2]
[348036800,1736272238799,-500.0,0.00018399,2]
[348036802,1736272238809,-500.0,0.00018399,2]
[348036804,1736272238819,-500.0,0.00018399,2]
[348036806,1736272238828,-500.0,0.00018399,2]
[348036808,1736272238839,-500.0,0.00018399,2]
[348036810,1736272238848,-500.0,0.00018399,2]
[348036812,1736272238858,-500.0,0.00018399,2]
[348036814,1736272238867,-500.0,0.00018399,2]
[348036816,1736272238877,-500.0,0.00018399,2]
[348036818,1736272238886,-500.0,0.00018399,2]
[348036820,1736272238896,-401.48186107,0.00018399,2]
[348036822,1736272238907,-98.51813893,0.00018399,2]
[348036824,1736272238917,-500.0,0.00018399,2]
[348036826,1736272238931,-500.0,0.00018399,2]
[348036828,1736272238940,-450.51084197,0.00018399,2]
[348036830,1736272238949,-333.68096669,0.00018399,2]
[348036832,1736272238958,-473.91494609,0.00018399,2]
[348036834,1736272238968,-577.54601435,0.00018399,2]
[348036836,1736272238977,-500.0,0.00018399,2]
[348036838,1736272238986,-500.0,0.00018399,2]
[348036839,1736272238996,-500.0,0.00018399,2]
[348036841,1736272239005,-520.94245863,0.00018879,2]
[348036843,1736272239016,-632.79510051,0.00019071,2]
[348036846,1736272239026,-152.06276804,0.00019073,2]
[348036848,1736272239036,-501.17272382,0.00019073,2]
[348036849,1736272239045,-266.60828839,0.00019073,2]
[348036851,1736272239055,-152.06172381,0.00019073,2]
[348036853,1736272239064,-500.98205997,0.00019073,2]
[348036855,1736272239073,-500.69303137,0.00019073,2]
[348036857,1736272239084,-151.06135663,0.00019073,2]
[348036859,1736272239093,-203.66318129,0.00019073,2]
[348036861,1736272239103,-503.11163309,0.00019073,2]
[348036863,1736272239112,-162.11191938,0.00019073,2]
[348036865,1736272239122,-151.06135888,0.00019073,2]
[348036867,1736272239132,-826.47949492,0.00019078,2]
[348036869,1736272239144,-91.88012051,0.00019078,2]
[348036871,1736272239154,-300.51224549,0.00019161,2]
[348036873,1736272239164,-190.02328871,0.00019166,2]
[348036875,1736272239173,-153.91,0.00019177,2]
[348036877,1736272239186,-168.471,0.00019177,2]
[348036879,1736272239196,-195.3087542,0.00019177,2]
[348036881,1736272239206,-207.22985697,0.00019177,2]
[348036883,1736272239215,-500.0,0.00019177,2]
[348036885,1736272239225,-271.53723519,0.00019177,2]
[348036887,1736272239234,-2040.74718388,0.00019178,3]
[348036891,1736272239256,-15210.8528389,0.00019178,3]
[348036892,1736272239266,-1213.99227324,0.00019178,3]
[348036895,1736272239275,-500.0,0.00019178,2]
[348036896,1736272239285,-500.0,0.00019178,2]
[348036898,1736272239295,-500.0,0.00019178,2]
[348036900,1736272239305,-500.0,0.00019178,2]
[348036902,1736272239314,-1081.25,0.00019178,2]
[348036904,1736272239324,-500.0,0.00019178,2]
[348036906,1736272239333,-500.0,0.00019178,2]
[348036908,1736272239343,-500.0,0.00019178,2]
[348036910,1736272239352,-500.0,0.00019178,2]
[348036912,1736272239361,-500.0,0.00019178,2]
[348036914,1736272239372,-500.0,0.00019178,2]
[348036916,1736272239381,-500.0,0.00019178,2]
[348036918,1736272239391,-500.0,0.00019178,2]
[348036920,1736272239401,-509.7,0.00019178,2]
[348036922,1736272239410,-500.0,0.00019178,2]
[348036924,1736272239421,-500.0,0.00019178,2]
[348036926,1736272239432,-500.0,0.00019178,2]
[348036928,1736272239441,-500.0,0.00019178,2]
[348036930,1736272239451,-500.0,0.00019178,2]
[348036932,1736272239460,-500.0,0.00019178,2]
[348036934,1736272239470,-500.0,0.00019178,2]
[348036936,1736272239479,-500.0,0.00019178,2]
[348036938,1736272239489,-500.0,0.00019178,2]
[348036940,1736272239499,-500.0,0.00019178,2]
[348036942,1736272239508,-500.0,0.00019178,2]
[348036944,1736272239518,-500.0,0.00019178,2]
[348036946,1736272239527,-490.09766049,0.00019178,2]
[348036948,1736272239539,-9.90233951,0.00019178,2]
[348036950,1736272239549,-500.0,0.00019178,2]
[348036952,1736272239558,-500.0,0.00019178,2]
[348036954,1736272239567,-500.0,0.00019178,2]
[348036956,1736272239576,-500.0,0.00019178,2]
[348036958,1736272239585,-504.52788573,0.00019178,2]
[348036960,1736272239595,-500.0,0.00019178,2]
[348036962,1736272239604,-500.0,0.00019178,2]
[348036964,1736272239613,-500.0,0.00019178,2]
[348036966,1736272239623,-500.0,0.00019178,2]
[348036968,1736272239632,-500.0,0.00019178,2]
[348036969,1736272239641,-500.0,0.00019178,2]
[348036971,1736272239651,-500.0,0.00019178,2]
[348036973,1736272239660,-500.0,0.00019178,2]
[348036976,1736272239670,-500.0,0.00019178,2]
[348036977,1736272239679,-500.0,0.00019178,2]
[348036979,1736272239689,-500.0,0.00019178,2]
[348036981,1736272239698,-500.0,0.00019178,2]
[348036983,1736272239708,-500.0,0.00019178,2]
[348036985,1736272239717,-500.0,0.00019178,2]
[348036987,1736272239726,-500.0,0.00019178,2]
[348036989,1736272239736,-500.0,0.00019178,2]
[348036991,1736272239745,-526.74,0.00019178,2]
[348036993,1736272239754,-500.0,0.00019178,2]
[348036995,1736272239763,-500.0,0.00019178,2]
[348036997,1736272239772,-500.0,0.00019178,2]
[348036999,1736272239782,-500.0,0.00019178,2]
[348037001,1736272239791,-173.20445614,0.00019178,2]
[348037003,1736272239801,-188.02525328,0.00019178,2]
[348037005,1736272239811,-366.49,0.00019178,2]
[348037007,1736272239821,-500.0,0.00019178,2]
[348037009,1736272239830,-500.0,0.00019178,2]
[348037011,1736272239840,-539.84,0.00019178,2]
[348037013,1736272239849,-500.0,0.00019178,2]
[348037015,1736272239859,-500.0,0.00019178,2]
[348037017,1736272239869,-500.0,0.00019178,2]
[348037019,1736272239880,-627.24,0.00019178,2]
[348037021,1736272239889,-684.66,0.00019178,2]
[348037023,1736272239899,-436.17561299,0.00019178,2]
[348037025,1736272239909,-500.0,0.00019178,2]
[348037027,1736272239924,-500.0,0.00019178,2]
[348037029,1736272239935,-500.0,0.00019178,2]
[348037031,1736272239945,-500.0,0.00019178,2]
[348037032,1736272239954,-586.32,0.00019178,2]
[348037033,1736272239965,-500.0,0.00019178,2]
[348037034,1736272239975,-500.0,0.00019178,2]
[348037035,1736272239985,-4368.87,0.00019178,2]
[348037036,1736272239995,-500.0,0.00019178,2]
[348037038,1736272240005,-500.0,0.00019178,2]
[348037040,1736272240014,-500.0,0.00019178,2]
[348037042,1736272240023,-503.70279704,0.00019178,2]
[348037045,1736272240032,-500.0,0.00019178,2]
[348037048,1736272240042,-500.0,0.00019178,2]
[348037051,1736272240051,-500.0,0.00019178,2]
[348037053,1736272240061,-500.0,0.00019178,2]
[348037056,1736272240070,-500.0,0.00019178,2]
[348037058,1736272240080,-500.0,0.00019178,2]
[348037060,1736272240089,-500.0,0.00019178,2]
[348037062,1736272240099,-547.39396296,0.00019178,2]
[348037064,1736272240109,-500.0,0.00019178,2]
[348037066,1736272240119,-500.0,0.00019178,2]
[348037068,1736272240129,-500.0,0.00019178,2]
[348037070,1736272240139,-500.0,0.00019178,2]
[348037072,1736272240148,-1031.06,0.00019178,2]
[348037074,1736272240158,-500.0,0.00019178,2]
[348037076,1736272240168,-500.0,0.00019178,2]
[348037078,1736272240178,-1005.35,0.00019178,2]
[348037080,1736272240187,-500.0,0.00019178,2]
[348037082,1736272240196,-500.0,0.00019178,2]
[348037084,1736272240206,-500.0,0.00019178,2]
[348037086,1736272240216,-500.0,0.00019178,2]
[348037088,1736272240225,-500.0,0.00019178,2]
[348037090,1736272240234,-500.0,0.00019178,2]
[348037092,1736272240244,-500.0,0.00019178,2]
[348037094,1736272240254,-500.0,0.00019178,2]
[348037096,1736272240263,-500.0,0.00019178,2]
[348037098,1736272240273,-500.0,0.00019178,2]
[348037100,1736272240282,-500.0,0.00019178,2]
[348037102,1736272240291,-500.0,0.00019178,2]
[348037104,1736272240300,-500.0,0.00019178,2]
[348037106,1736272240310,-500.0,0.00019178,2]
[348037108,1736272240319,-500.0,0.00019178,2]
[348037110,1736272240328,-500.0,0.00019178,2]
[348037112,1736272240338,-500.0,0.00019178,2]
[348037114,1736272240347,-500.0,0.00019178,2]
[348037116,1736272240356,-500.0,0.00019178,2]
[348037118,1736272240365,-449.9540407,0.00019178,2]
[348037120,1736272240376,-500.0,0.00019178,2]
[348037122,1736272240386,-500.0,0.00019178,2]
[348037124,1736272240395,-500.0,0.00019178,2]
[348037126,1736272240404,-500.0,0.00019178,2]
[348037128,1736272240413,-152.0,0.00019192,2]
[348037130,1736272240423,-1030.77,0.000192,2]
[348037131,1736272240436,-300.51224549,0.00019352,2]
[348037132,1736272240446,-150.0,0.000194,2]
[348037133,1736272240455,-150.0,0.000194,2]
[348037134,1736272240465,-500.0,0.00019452,3]
[348037135,1736272240475,-500.0,0.00019452,3]
[348037136,1736272240485,-500.0,0.00019452,3]
[348037137,1736272240495,-500.0,0.00019452,3]
[348037138,1736272240504,-1081.25,0.00019452,3]
[348037139,1736272240514,-216.04,0.00019452,3]
[348037140,1736272240523,-500.0,0.00019452,3]
[348037141,1736272240532,-500.0,0.00019452,3]
[348037142,1736272240542,-328.6,0.00019452,3]
[348037143,1736272240552,-369.86,0.00019452,3]
[348037144,1736272240561,-500.0,0.00019452,3]
[348037145,1736272240571,-500.0,0.00019452,3]
[348037146,1736272240580,-500.0,0.00019452,3]
[348037147,1736272240590,-318.72,0.00019452,3]
[348037148,1736272240599,-268.48,0.00019452,3]
[348037149,1736272240608,-500.0,0.00019452,3]
[348037153,1736272240722,-390.94,0.00019452,3]
[348037155,1736272240732,-233.2,0.00019452,3]
[348037157,1736272240741,-511.68,0.00019452,3]
[348037159,1736272240750,-500.0,0.00019452,3]
[348037161,1736272240760,-572.06,0.00019452,3]
[348037163,1736272240769,-500.0,0.00019452,3]
[348037166,1736272240779,-500.0,0.00019452,3]
[348037168,1736272240788,-500.0,0.00019452,3]
[348037170,1736272240797,-460.34,0.00019452,3]
[348037172,1736272240806,-684.66,0.00019452,3]
[348037173,1736272240815,-500.0,0.00019452,3]
[348037176,1736272240825,-4368.87,0.00019452,3]
[348037177,1736272240834,-500.0,0.00019452,3]
[348037179,1736272240843,-500.0,0.00019452,3]
[348037181,1736272240852,-500.0,0.00019452,2]
[348037183,1736272240862,-500.0,0.00019452,3]
[348037185,1736272240871,-500.0,0.00019452,3]
[348037187,1736272240881,-500.0,0.00019452,3]
[348037189,1736272240890,-500.0,0.00019452,3]
[348037191,1736272240900,-500.0,0.00019452,3]
[348037193,1736272240910,-500.0,0.00019452,3]
[348037195,1736272240921,-278.1,0.00019452,3]
[348037197,1736272240939,-162.2,0.00019452,3]
[348037199,1736272240948,-1031.06,0.00019452,3]
[348037202,1736272240959,-500.0,0.00019452,3]
[348037203,1736272240968,-1005.35,0.00019452,3]
[348037206,1736272240979,-500.0,0.00019452,3]
[348037207,1736272240988,-299.48,0.00019452,3]
[348037210,1736272240999,-500.0,0.00019452,3]
[348037212,1736272241008,-500.0,0.00019452,3]
[348037213,1736272241018,-500.0,0.00019452,3]
[348037215,1736272241027,-500.0,0.00019452,3]
[348037217,1736272241036,-172.03,0.00019452,3]
[348037219,1736272241044,-156.84577194,0.00019637,2]
[348037221,1736272241054,-499.0,0.00019725,2]
[348037223,1736272241064,-500.0,0.00019726,3]
[348037225,1736272241073,-500.0,0.00019726,3]
[348037227,1736272241083,-1081.25,0.00019726,3]
[348037229,1736272241093,-500.0,0.00019726,3]
[348037231,1736272241103,-500.0,0.00019726,3]
[348037233,1736272241116,-375.56,0.00019726,3]
[348037235,1736272241126,-500.0,0.00019726,3]
[348037237,1736272241136,-415.44,0.00019726,3]
[348037239,1736272241145,-261.9,0.00019726,3]
[348037242,1736272241156,-500.0,0.00019726,3]
[348037244,1736272241166,-500.0,0.00019726,3]
[348037246,1736272241176,-500.0,0.00019726,3]
[348037248,1736272241192,-684.66,0.00019726,3]
[348037250,1736272241202,-500.0,0.00019726,3]
[348037252,1736272241212,-4368.87,0.00019726,3]
[348037254,1736272241222,-500.0,0.00019726,3]
[348037256,1736272241231,-500.0,0.00019726,3]
[348037258,1736272241241,-500.0,0.00019726,2]
[348037260,1736272241250,-500.0,0.00019726,3]
[348037262,1736272241260,-500.0,0.00019726,3]
[348037264,1736272241269,-500.0,0.00019726,3]
[348037266,1736272241279,-500.0,0.00019726,3]
[348037268,1736272241289,-500.0,0.00019726,3]
[348037270,1736272241299,-500.0,0.00019726,3]
[348037272,1736272241309,-1031.06,0.00019726,3]
[348037274,1736272241318,-500.0,0.00019726,3]
[348037276,1736272241328,-1005.35,0.00019726,3]
[348037278,1736272241337,-500.0,0.00019726,3]
[348037280,1736272241347,-571.14,0.00019726,3]
[348037282,1736272241356,-500.0,0.00019726,3]
[348037284,1736272241366,-500.0,0.00019726,3]
[348037286,1736272241375,-294.78,0.00019726,3]
[348037288,1736272241385,-738.53698295,0.00019891,2]
[348037290,1736272241395,-1000.0,0.0002,20]
[348037291,1736272241405,-1000.0,0.0002,2]
[348037294,1736272241415,-500.0,0.0002,3]
[348037295,1736272241425,-1371.47411752,0.0002,30]
[348037298,1736272241441,-500.0,0.0002,3]
[348037300,1736272241450,-45432.75581123,0.0002,4]
[348037307,1736272241515,-151.06135663,0.00019073,2]
[348037310,1736272241525,-288.24883383,0.00019073,2]
[348037311,1736272241535,-2726.08743566,0.000199,2]
[348037314,1736272241545,-36517.24418877,0.0002,4]